bitfinex/quotes_SOLUSD_20250306
["timestamp","ask_amount","ask_price","bid_price","bid_amount"]
[1741299070169,15.21862508,145.8,145.74,0.14216157]
[1741299070380,15.21862508,145.8,145.74,30.98680836]
[1741299070550,15.21862508,145.8,145.79,312.14216157]
[1741299070988,15.21862508,145.8,145.79,0.14216157]
[1741299071181,10.7268964,145.83,145.77,30.84464679]
[1741299071356,10.7268964,145.83,145.78,0.14216157]
[1741299071556,10.7268964,145.83,145.76,37.70474679]
[1741299071557,49.19186165,145.82,145.73,7.36]
[1741299071798,49.19186165,145.81,145.73,7.36]
[1741299071971,0.28432314,145.78,145.68,7.36]
[1741299072285,49.19186165,145.77,145.66,0.033]
[1741299072490,49.19186165,145.76,145.66,0.17516157]
[1741299072972,49.19186165,145.76,145.66,6.8979]
[1741299073363,49.19186165,145.76,145.67,0.14216157]
[1741299073668,49.19186165,145.76,145.69,30.98680836]
[1741299073852,49.19186165,145.79,145.73,0.14216157]
[1741299074053,49.19186165,145.82,145.79,0.14216157]
[1741299074377,53.30656165,145.82,145.74,0.14216157]
[1741299074592,49.47618479,145.81,145.74,0.14216157]
[1741299074775,49.19186165,145.81,145.74,0.14216157]
[1741299075662,53.30686165,145.81,145.74,0.14216157]
[1741299076069,49.19186165,145.81,145.74,0.14216157]
[1741299076276,49.19186165,145.81,145.74,7.00356157]
[1741299076878,6.4437,145.83,145.74,7.00356157]
[1741299076879,49.19186165,145.83,145.76,0.14216157]
[1741299077285,0.28432314,145.81,145.68,6.8643]
[1741299077483,0.28432314,145.79,145.68,88.9643]
[1741299077685,49.19186165,145.8,145.69,0.14216157]
[1741299077984,57.30768479,145.79,145.66,0.033]
[1741299078579,57.30768479,145.79,145.66,6.8981]
[1741299079178,57.30768479,145.79,145.67,0.14216157]
[1741299079593,57.30768479,145.79,145.66,0.033]
[1741299079778,0.28432314,145.77,145.66,0.033]
[1741299079987,0.28432314,145.75,145.66,0.033]
[1741299080189,49.19186165,145.74,145.69,312.0]
[1741299080386,0.28432314,145.72,145.66,0.033]
[1741299080700,8.11582314,145.7,145.66,0.033]
[1741299080868,8.11582314,145.7,145.61,0.03]
[1741299081068,49.19186165,145.69,145.66,0.033]
[1741299081274,0.28432314,145.67,145.66,0.033]
[1741299081787,4.1188,145.67,145.66,0.033]
[1741299082604,4.40312314,145.67,145.66,0.033]
[1741299083604,4.1188,145.67,145.66,0.033]
[1741299083803,4.40312314,145.67,145.66,0.033]
[1741299084008,82.0,145.68,145.66,0.033]
[1741299084174,82.0,145.72,145.66,0.033]
[1741299084381,82.0,145.71,145.66,0.033]
[1741299085404,7.6489,145.74,145.66,0.17516157]
[1741299085700,82.0,145.75,145.68,0.14216157]
[1741299085907,82.0,145.77,145.68,114.52793713]
[1741299086107,4.1455,145.79,145.7,30.98680836]
[1741299086311,86.1455,145.79,145.7,114.52747563]
[1741299086474,86.1455,145.79,145.7,82.24216157]
[1741299086678,86.1455,145.79,145.7,128.62964926]
[1741299086878,82.03,145.79,145.72,0.14216157]
[1741299087189,82.03,145.79,145.78,312.0]
[1741299087903,86.1455,145.79,145.78,312.0]
[1741299089201,86.1455,145.79,145.71,0.14216157]
[1741299089378,82.0,145.78,145.71,0.14216157]
[1741299089896,82.0,145.78,145.7,0.14216157]
[1741299090099,4.116,145.77,145.7,0.14216157]
[1741299090413,4.116,145.77,145.69,0.14216157]
[1741299090906,82.0,145.76,145.66,0.033]
[1741299091082,82.28432314,145.75,145.66,0.033]
[1741299091284,82.0,145.74,145.66,0.033]
[1741299091481,82.0,145.73,145.66,0.033]
[1741299091706,82.0,145.72,145.66,0.033]
[1741299092107,82.0,145.72,145.66,312.033]
[1741299092315,4.1177,145.71,145.66,312.033]
[1741299093010,14.4121,145.71,145.66,312.033]
[1741299093218,82.0,145.7,145.66,312.033]
[1741299093388,82.0,145.69,145.66,312.033]
[1741299093792,82.0,145.69,145.66,0.033]
[1741299094301,4.1186,145.68,145.66,0.033]
[1741299094500,82.0,145.67,145.66,0.033]
[1741299094715,4.1186,145.68,145.66,0.033]
[1741299095291,17.6744,145.71,145.66,0.033]
[1741299095292,4.118,145.7,145.66,0.033]
[1741299095589,14.4131,145.7,145.66,0.033]
[1741299096586,0.28432314,145.69,145.66,0.033]
[1741299098613,4.1186,145.68,145.66,0.033]
[1741299098922,4.118,145.7,145.66,0.033]
[1741299099318,82.0,145.67,145.66,0.033]
[1741299099518,18.2136,145.73,145.66,0.033]
[1741299099519,82.0,145.69,145.66,0.033]
[1741299099808,82.0,145.72,145.66,0.033]
[1741299099994,82.0,145.74,145.69,46.38748769]
[1741299100194,82.0,145.74,145.7,0.14216157]
[1741299100388,82.0,145.74,145.7,7.00506157]
[1741299100814,82.0,145.74,145.7,0.14216157]
[1741299101014,82.0,145.74,145.7,7.00546157]
[1741299101518,82.0,145.74,145.7,0.14216157]
[1741299101697,82.0,145.74,145.72,312.0]
[1741299102013,82.0,145.77,145.73,0.14216157]
[1741299102390,82.0,145.77,145.72,0.14216157]
[1741299102715,86.1161,145.77,145.72,0.14216157]
[1741299103090,86.1161,145.77,145.69,89.44]
[1741299103291,82.0,145.76,145.7,0.14216157]
[1741299103717,82.0,145.75,145.69,7.34]
[1741299103904,82.0,145.75,145.7,0.14216157]
[1741299104514,82.0,145.75,145.7,7.00526157]
[1741299105314,82.0,145.75,145.73,0.14216157]
[1741299105617,82.03,145.75,145.73,0.14216157]
[1741299105799,82.03,145.75,145.71,0.14216157]
[1741299106000,0.03,145.75,145.71,46.52964926]
[1741299106622,0.03,145.75,145.71,0.14216157]
[1741299106795,0.03,145.75,145.7,53.39304926]
[1741299106995,0.03,145.75,145.72,0.14216157]
[1741299107918,0.03,145.75,145.73,0.14216157]
[1741299108298,0.03,145.75,145.71,0.14216157]
[1741299108693,0.03,145.75,145.74,312.14216157]
[1741299109700,0.03,145.75,145.7,6.8633]
[1741299109898,0.03,145.75,145.69,96.3037]
[1741299110126,0.03,145.75,145.7,0.14216157]
[1741299110310,82.03,145.75,145.66,112.733]
[1741299110519,82.03,145.75,145.67,7.26]
[1741299110917,4.1169,145.74,145.67,7.26]
[1741299111116,4.1169,145.74,145.68,0.14216157]
[1741299112324,82.0,145.73,145.66,0.033]
[1741299112622,82.0,145.73,145.69,0.14216157]
[1741299112797,82.03,145.75,145.69,7.00586157]
[1741299113003,86.1466,145.75,145.69,0.14216157]
[1741299113221,86.1466,145.75,145.67,0.14216157]
[1741299113604,82.0,145.74,145.66,0.033]
[1741299113813,82.0,145.73,145.66,0.033]
[1741299114427,89.9513,145.73,145.66,0.033]
[1741299115024,14.4111,145.72,145.66,0.033]
[1741299115529,82.0,145.71,145.66,0.033]
[1741299115733,82.0,145.7,145.66,0.033]
[1741299116133,82.0,145.7,145.66,312.033]
[1741299117032,4.1183,145.69,145.66,312.033]
[1741299117813,82.0,145.68,145.66,0.033]
[1741299118136,82.0,145.67,145.66,0.033]
[1741299119041,86.1188,145.67,145.66,0.033]
[1741299119213,4.1188,145.67,145.66,0.033]
[1741299120218,0.28432314,145.71,145.66,0.033]
[1741299120418,0.28432314,145.69,145.66,0.033]
[1741299121241,82.0,145.7,145.66,0.033]
[1741299121422,86.1467,145.75,145.69,0.14216157]
[1741299121628,86.1467,145.75,145.66,82.133]
[1741299121629,82.0,145.74,145.66,0.033]
[1741299121943,82.0,145.73,145.66,0.033]
[1741299122239,82.28432314,145.74,145.66,0.033]
[1741299122418,7.9513,145.72,145.66,0.033]
[1741299123343,0.28432314,145.71,145.66,0.033]
[1741299123527,82.0,145.7,145.66,0.033]
[1741299124245,86.1183,145.69,145.66,0.033]
[1741299124613,96.4141,145.69,145.66,0.033]
[1741299125253,82.0,145.69,145.66,0.033]
[1741299126437,4.1186,145.68,145.66,0.033]
[1741299126746,82.0,145.67,145.66,0.033]
[1741299127517,86.1188,145.67,145.66,0.033]
[1741299128245,82.0,145.67,145.66,0.033]
[1741299128426,82.0,145.67,145.66,312.033]
[1741299128747,82.0,145.72,145.67,0.14216157]
[1741299129131,82.0,145.72,145.66,0.033]
[1741299129132,86.1175,145.72,145.66,0.033]
[1741299129444,82.0,145.71,145.66,0.033]
[1741299129621,4.118,145.7,145.66,0.033]
[1741299130017,14.4131,145.7,145.66,0.033]
[1741299130221,82.0,145.69,145.66,0.033]
[1741299130452,82.0,145.68,145.66,0.033]
[1741299131732,86.1188,145.68,145.66,0.033]
[1741299132126,82.0,145.68,145.66,0.033]
[1741299133845,82.0,145.68,145.66,0.17516157]
[1741299134043,82.03,145.72,145.67,0.14216157]
[1741299134626,82.03,145.72,145.66,0.033]
[1741299135350,0.03,145.72,145.71,343.06422443]
[1741299135849,0.03,145.72,145.71,31.06422443]
[1741299136041,0.03,145.72,145.71,0.14216157]
[1741299137848,0.03,145.72,145.66,0.033]
[1741299138147,82.0,145.71,145.66,7.35516157]
[1741299138348,82.0,145.71,145.66,0.17516157]
[1741299138555,82.0,145.7,145.66,0.033]
[1741299138846,82.0,145.7,145.67,0.14216157]
[1741299139350,4.1183,145.69,145.66,312.033]
[1741299139948,82.0,145.68,145.66,312.033]
[1741299140330,82.0,145.68,145.66,0.033]
[1741299141527,86.1186,145.68,145.66,0.033]
[1741299141930,82.0,145.68,145.66,0.033]
[1741299142638,0.03,145.71,145.66,31.09722443]
[1741299142847,0.03,145.71,145.68,0.14216157]
[1741299143144,0.03,145.71,145.68,7.32216157]
[1741299143340,0.03,145.71,145.7,319.00556157]
[1741299143737,0.03,145.71,145.7,349.92762443]
[1741299144136,0.03,145.71,145.7,432.02762443]
[1741299145229,0.0001,145.71,145.7,432.31194757]
[1741299145760,0.0001,145.71,145.7,462.91194757]
[1741299145940,0.0001,145.71,145.7,462.62762443]
[1741299146267,0.03,145.75,145.71,0.14216157]
[1741299146546,0.03,145.75,145.74,31.06422443]
[1741299146752,0.03,145.75,145.74,120.62854757]
[1741299146951,0.03,145.75,145.74,128.50315568]
[1741299147251,82.0,145.84,145.75,0.14216157]
[1741299147430,0.03,145.86,145.78,31.34854757]
[1741299147636,0.03,145.86,145.78,119.98608471]
[1741299147838,0.03,145.86,145.78,150.90814757]
[1741299148341,0.03,145.86,145.84,31.06422443]
[1741299148762,0.03,145.86,145.84,0.14216157]
[1741299148948,0.03,145.86,145.84,31.06422443]
[1741299149261,0.03,145.86,145.85,31.06422443]
[1741299149463,0.03,145.86,145.85,312.14216157]
[1741299151156,0.03,145.9,145.86,0.14216157]
[1741299151532,0.03,145.9,145.84,0.14216157]
[1741299151736,0.03,145.9,145.84,31.06422443]
[1741299152543,0.03,145.9,145.86,0.14216157]
[1741299152937,0.03,145.9,145.85,0.14216157]
[1741299153671,0.03,145.87,145.85,0.14216157]
[1741299154042,0.03,145.87,145.85,31.06422443]
[1741299154342,0.03,145.87,145.86,312.0]
[1741299154558,0.03,145.87,145.86,343.06422443]
[1741299154869,0.03,145.87,145.86,312.14216157]
[1741299156358,0.03,145.87,145.86,349.92002443]
[1741299156940,0.03,145.87,145.86,312.14216157]
[1741299157159,0.03,145.87,145.86,343.06422443]
[1741299157456,0.03,145.87,145.86,462.90434757]
[1741299158766,0.03,145.87,145.86,462.62002443]
[1741299158957,0.03,145.87,145.86,394.1]
[1741299159136,0.03,145.87,145.86,394.24216157]
[1741299159531,0.03,145.87,145.86,394.1]
[1741299159757,0.03,145.87,145.86,312.0]
[1741299159951,0.03,145.87,145.86,312.14216157]
[1741299161864,0.03,145.87,145.83,7.16]
[1741299162065,0.03,145.87,145.84,0.14216157]
[1741299163657,0.03,145.87,145.81,7.16]
[1741299164037,14.4263,145.87,145.82,0.14216157]
[1741299164759,82.0,145.86,145.84,312.0]
[1741299164936,82.0,145.85,145.78,7.16]
[1741299165138,82.0,145.84,145.79,0.14216157]
[1741299165664,82.0,145.83,145.76,82.1]
[1741299165850,82.0,145.83,145.77,0.14216157]
[1741299166047,86.1146,145.82,145.75,7.16]
[1741299166256,86.1146,145.82,145.76,0.14216157]
[1741299166451,86.1146,145.82,145.75,89.26]
[1741299166667,96.4012,145.82,145.75,89.26]
[1741299166963,86.1146,145.82,145.76,0.14216157]
[1741299167153,86.1146,145.82,145.75,89.26]
[1741299167459,86.1146,145.82,145.76,0.14216157]
[1741299167839,96.4012,145.82,145.76,312.0]
[1741299168040,86.1136,145.86,145.77,31.06422443]
[1741299168255,86.1136,145.86,145.8,0.14216157]
[1741299169444,96.3974,145.86,145.78,82.1]
[1741299169646,86.1136,145.86,145.79,0.14216157]
[1741299170963,86.1136,145.86,145.78,82.1]
[1741299171169,82.0,145.85,145.75,7.16]
[1741299171369,82.0,145.84,145.8,0.14216157]
[1741299171544,4.1136,145.86,145.8,0.14216157]
[1741299171545,4.1146,145.82,145.8,0.14216157]
[1741299172064,82.0,145.86,145.76,0.14216157]
[1741299172374,86.1138,145.85,145.76,90.54269725]
[1741299173267,86.1138,145.85,145.76,89.10266157]
[1741299173453,96.3983,145.85,145.76,89.10266157]
[1741299173763,86.1138,145.85,145.76,89.10266157]
[1741299174457,96.3983,145.85,145.76,82.24216157]
[1741299174759,86.1138,145.85,145.76,82.24216157]
[1741299174961,86.1138,145.85,145.81,0.14216157]
[1741299175160,82.0,145.84,145.81,0.14216157]
[1741299175345,4.1143,145.83,145.77,0.14216157]
[1741299175545,86.1143,145.83,145.77,7.00226157]
[1741299175767,86.1143,145.83,145.77,0.14216157]
[1741299176879,86.1143,145.83,145.77,7.00216157]
[1741299177073,82.0,145.83,145.77,39.36438594]
[1741299177370,78.39652425,145.83,145.77,39.36438594]
[1741299177560,78.39652425,145.83,145.77,56.51468594]
[1741299177756,79.98012425,145.87,145.79,0.14216157]
[1741299178072,84.09342425,145.87,145.8,31.06422443]
[1741299178261,84.09342425,145.87,145.82,0.14216157]
[1741299178576,78.39652425,145.86,145.83,312.0]
[1741299178876,78.39652425,145.86,145.82,0.14216157]
[1741299179048,5.6969,145.87,145.81,7.16]
[1741299179049,78.39652425,145.85,145.81,7.16]
[1741299179244,78.39652425,145.85,145.77,0.033]
[1741299179449,78.39652425,145.84,145.77,0.17516157]
[1741299179668,4.1143,145.83,145.77,0.17516157]
[1741299180473,6.4023,145.81,145.77,0.033]
[1741299180675,84.79882425,145.81,145.77,0.033]
[1741299181769,4.1152,145.8,145.77,312.033]
[1741299181977,4.1152,145.8,145.78,0.14216157]
[1741299182371,4.1152,145.8,145.77,0.033]
[1741299182978,94.93292425,145.86,145.77,0.033]
[1741299183159,103.07932425,145.85,145.77,0.033]
[1741299183360,113.36382425,145.85,145.77,0.033]
[1741299183858,78.68084739,145.84,145.77,0.033]
[1741299185377,78.68084739,145.84,145.78,0.14216157]
[1741299185876,14.4002,145.83,145.77,0.033]
[1741299186079,78.39652425,145.82,145.77,0.033]
[1741299187977,4.1149,145.81,145.77,0.033]
[1741299188455,78.39652425,145.84,145.77,0.17516157]
[1741299188653,78.39652425,145.84,145.79,0.14216157]
[1741299188872,82.51082425,145.84,145.82,0.14216157]
[1741299189083,78.39652425,145.83,145.81,312.0]
[1741299190081,4.1146,145.82,145.81,312.0]
[1741299191186,4.1146,145.82,145.78,0.14216157]
[1741299191378,82.51162425,145.81,145.78,0.14216157]
[1741299191884,92.79892425,145.81,145.78,0.14216157]
[1741299192087,92.79892425,145.81,145.77,0.033]
[1741299192263,78.39652425,145.8,145.77,0.033]
[1741299192470,6.1612,145.79,145.77,0.033]
[1741299192667,78.39652425,145.78,145.77,0.033]
[1741299193592,82.51222425,145.78,145.77,0.033]
[1741299196297,4.1157,145.78,145.77,0.033]
[1741299196762,82.0,145.77,145.7,163.36]
[1741299196962,82.0,145.76,145.71,0.14216157]
[1741299197272,82.0,145.76,145.71,312.14216157]
[1741299197789,82.0,145.76,145.71,7.00506157]
[1741299197973,83.6332,145.8,145.73,19.31775607]
[1741299198297,82.0,145.8,145.76,0.14216157]
[1741299198465,86.1149,145.82,145.76,0.14216157]
[1741299198985,86.1149,145.82,145.74,101.41775607]
[1741299198986,82.0,145.81,145.75,0.14216157]
[1741299199365,82.0,145.81,145.74,0.14216157]
[1741299199662,82.0,145.81,145.74,19.45991764]
[1741299199865,82.0,145.81,145.76,0.14216157]
[1741299200082,86.115,145.81,145.76,0.14216157]
[1741299200476,82.0,145.81,145.74,88.9614]
[1741299200673,86.1149,145.81,145.75,0.14216157]
[1741299200877,82.0,145.8,145.72,6.8623]
[1741299201078,82.0,145.79,145.73,0.14216157]
[1741299201295,82.0,145.79,145.72,6.8623]
[1741299201470,82.0,145.79,145.74,0.033]
[1741299201917,82.0,145.79,145.75,0.14216157]
[1741299202391,86.1156,145.79,145.75,0.14216157]
[1741299202585,86.1156,145.79,145.74,0.17516157]
[1741299203768,82.0,145.78,145.74,0.033]
[1741299203994,82.0,145.78,145.74,312.033]
[1741299204195,82.0,145.77,145.74,0.033]
[1741299205777,4.1163,145.76,145.74,0.033]
[1741299205978,82.0,145.75,145.74,0.033]
[1741299206302,8.2461,145.75,145.74,0.033]
[1741299207875,12.3627,145.75,145.74,0.033]
[1741299208193,18.5648,145.8,145.74,0.033]
[1741299208395,82.0,145.79,145.74,0.033]
[1741299209197,96.4042,145.79,145.74,0.033]
[1741299209427,86.1155,145.79,145.74,0.033]
[1741299209599,12.3913,145.8,145.74,0.033]
[1741299210491,12.3913,145.8,145.75,312.0]
[1741299210691,82.0,145.79,145.75,312.0]
[1741299210877,82.0,145.79,145.74,0.033]
[1741299212200,4.1157,145.78,145.74,0.033]
[1741299213689,14.4051,145.78,145.74,0.033]
[1741299213883,14.4051,145.78,145.74,312.033]
[1741299214198,4.1163,145.76,145.74,312.033]
[1741299214394,86.1163,145.76,145.74,0.033]
[1741299214700,82.0,145.75,145.74,0.033]
[1741299216203,86.1166,145.75,145.74,0.033]
[1741299218004,14.69242314,145.75,145.67,0.033]
[1741299218179,82.0,145.74,145.67,0.17516157]
[1741299218597,82.0,145.74,145.67,0.033]
[1741299219102,82.0,145.74,145.67,0.17516157]
[1741299219405,82.0,145.74,145.67,7.03986157]
[1741299219607,82.0,145.74,145.69,0.14216157]
[1741299219778,96.4092,145.74,145.69,0.14216157]
[1741299220189,96.4092,145.74,145.67,0.17516157]
[1741299221008,96.4092,145.74,145.69,312.0]
[1741299221808,90.2277,145.73,145.67,0.17516157]
[1741299222306,90.2277,145.73,145.65,0.14216157]
[1741299223495,4.1174,145.72,145.65,7.00746157]
[1741299223691,82.0,145.71,145.65,7.00746157]
[1741299224516,86.1178,145.71,145.65,7.00746157]
[1741299224716,86.1178,145.71,145.68,0.14216157]
[1741299224921,82.0,145.7,145.68,0.14216157]
[1741299225299,82.0,145.7,145.63,0.14216157]
[1741299225494,82.0,145.69,145.65,0.033]
[1741299225820,82.0,145.68,145.65,0.033]
[1741299226697,4.1188,145.67,145.65,0.033]
[1741299226915,86.1188,145.67,145.65,0.033]
[1741299227095,82.0,145.67,145.65,0.033]
[1741299228204,82.0,145.67,145.66,0.14216157]
[1741299228699,82.0,145.67,145.65,0.033]
[1741299228901,86.1189,145.67,145.65,0.033]
[1741299229300,82.0,145.67,145.65,0.033]
[1741299229809,82.0,145.66,145.65,0.033]
[1741299231021,86.1191,145.66,145.65,0.033]
[1741299235121,4.40342314,145.66,145.65,0.033]
[1741299236035,4.1191,145.66,145.65,0.033]
[1741299236600,0.28432314,145.67,145.65,0.033]
[1741299237643,0.31432314,145.67,145.65,0.033]
[1741299238624,0.03,145.67,145.65,0.033]
[1741299239520,0.03,145.67,145.65,312.033]
[1741299240317,0.03,145.67,145.65,0.033]
[1741299240517,0.03,145.67,145.66,0.14216157]
[1741299240828,0.03,145.67,145.65,26.35841764]
[1741299241131,0.03,145.67,145.65,0.033]
[1741299241332,0.03,145.67,145.66,0.14216157]
[1741299242010,0.03,145.67,145.65,0.033]
[1741299242404,0.03,145.67,145.66,0.14216157]
[1741299243308,0.03,145.67,145.66,312.14216157]
[1741299243843,0.03,145.67,145.66,319.00746157]
[1741299244811,0.03,145.67,145.66,312.14216157]
[1741299245431,0.03,145.67,145.66,319.00746157]
[1741299246210,0.03,145.67,145.66,338.32521764]
[1741299247536,0.03,145.67,145.66,420.70954078]
[1741299248533,0.0001,145.67,145.66,420.70954078]
[1741299250635,0.0001,145.67,145.66,420.74254078]
[1741299253740,0.0001,145.67,145.66,312.033]
[1741299254043,0.0001,145.67,145.66,312.17516157]
[1741299254215,0.0001,145.67,145.66,338.64254078]
[1741299256557,0.0001,145.67,145.66,312.17516157]
[1741299256854,0.0001,145.67,145.66,312.033]
[1741299257140,0.0001,145.67,145.66,312.17516157]
[1741299261319,0.0001,145.67,145.66,319.04046157]
[1741299264746,0.0001,145.67,145.66,312.17516157]
[1741299266451,0.0001,145.67,145.66,319.04046157]
[1741299268244,0.0001,145.67,145.66,312.17516157]
[1741299269537,0.0001,145.67,145.66,319.04046157]
[1741299270244,0.0001,145.67,145.66,312.17516157]
[1741299270443,0.0001,145.67,145.66,319.04046157]
[1741299270645,0.0001,145.67,145.66,331.70113168]
[1741299272935,0.0001,145.67,145.66,497.10651956]
[1741299273240,0.0001,145.67,145.66,447.60113168]
[1741299275050,0.0001,145.67,145.66,394.27516157]
[1741299275441,0.0001,145.67,145.66,413.51680854]
[1741299275864,0.0001,145.67,145.66,413.80113168]
[1741299276581,0.0001,145.67,145.66,394.133]
[1741299277068,0.0001,145.67,145.66,394.27516157]
[1741299277259,0.0001,145.67,145.66,406.65150854]
[1741299277462,0.0001,145.67,145.66,394.27516157]
[1741299277662,0.0001,145.67,145.66,413.51680854]
[1741299277864,0.0001,145.67,145.66,394.27516157]
[1741299278368,0.0001,145.67,145.66,394.133]
[1741299278566,0.0001,145.67,145.66,394.27516157]
[1741299279482,0.0001,145.67,145.66,312.17516157]
[1741299281072,0.0001,145.67,145.66,331.70113168]
[1741299282073,0.0001,145.67,145.66,413.80113168]
[1741299283780,0.0001,145.67,145.66,463.30651956]
[1741299284179,0.0001,145.67,145.66,497.10651956]
[1741299284366,82.0,145.76,145.67,0.42648471]
[1741299284686,7.8466,145.77,145.73,0.14216157]
[1741299285862,7.8466,145.77,145.73,12.51850854]
[1741299286181,11.9626,145.77,145.73,12.51850854]
[1741299286388,0.03,145.78,145.75,0.14216157]
[1741299287488,0.03,145.78,145.75,312.14216157]
[1741299289255,0.03,145.78,145.75,312.0]
[1741299289460,0.03,145.78,145.72,82.1]
[1741299289667,82.03,145.78,145.72,0.14216157]
[1741299289971,82.03,145.78,145.71,7.14]
[1741299290288,82.03,145.78,145.72,0.14216157]
[1741299291669,4.116,145.77,145.72,0.14216157]
[1741299292374,4.116,145.77,145.72,312.14216157]
[1741299292572,82.03,145.78,145.72,324.51850854]
[1741299292779,86.1458,145.78,145.72,331.38090854]
[1741299293559,86.1458,145.78,145.72,19.38090854]
[1741299294288,82.03,145.78,145.72,19.38090854]
[1741299295285,82.03,145.78,145.74,0.14216157]
[1741299295658,82.03,145.78,145.74,12.51850854]
[1741299296085,0.03,145.78,145.74,12.51850854]
[1741299296294,0.03,145.78,145.76,0.14216157]
[1741299296604,0.03,145.78,145.77,312.14216157]
[1741299296765,0.03,145.78,145.77,324.51850854]
[1741299297270,0.03,145.78,145.77,312.14216157]
[1741299298360,0.03,145.78,145.71,82.1]
[1741299298589,82.0,145.77,145.68,82.1]
[1741299298902,6.4903,145.74,145.67,7.14]
[1741299299072,82.0,145.73,145.67,7.14]
[1741299299266,82.0,145.73,145.68,12.51850854]
[1741299299570,82.0,145.73,145.67,7.14]
[1741299300273,82.0,145.73,145.66,0.033]
[1741299300480,4.1174,145.72,145.66,0.17516157]
[1741299300682,82.0,145.72,145.69,19.34689618]
[1741299300863,82.0,145.72,145.68,0.14216157]
[1741299301063,82.0,145.72,145.67,7.14]
[1741299301265,82.0,145.72,145.66,312.033]
[1741299301466,82.0,145.72,145.66,0.033]
[1741299301666,0.28432314,145.7,145.66,0.033]
[1741299301966,6.2215,145.67,145.66,0.033]
[1741299302161,88.2215,145.67,145.66,0.033]
[1741299302474,92.3403,145.67,145.66,0.033]
[1741299302669,82.0,145.66,145.65,0.033]
[1741299302879,82.0,145.66,145.61,0.03]
[1741299302880,0.28432314,145.66,145.61,0.03]
[1741299303115,0.28432314,145.64,145.61,0.03]
[1741299303307,82.0,145.65,145.61,0.03]
[1741299303704,0.28432314,145.64,145.61,0.03]
[1741299304006,6.89382314,145.62,145.61,0.03]
[1741299304515,11.01412314,145.62,145.59,0.033]
[1741299306098,1.5578,145.63,145.59,0.033]
[1741299306284,6.6095,145.66,145.59,0.033]
[1741299306285,6.6095,145.66,145.61,0.14216157]
[1741299306791,0.28432314,145.65,145.59,0.033]
[1741299306992,0.28432314,145.63,145.59,0.033]
[1741299307513,0.28432314,145.61,145.59,0.033]
[1741299308505,4.1208,145.6,145.59,0.033]
[1741299308688,86.1208,145.6,145.59,0.033]
[1741299308891,88.5972,145.62,145.59,0.033]
[1741299309195,82.0,145.65,145.6,19.34689618]
[1741299309385,6.3892,145.67,145.63,0.14216157]
[1741299309990,10.5081,145.67,145.6,0.14216157]
[1741299310201,82.0,145.66,145.6,19.48905775]
[1741299310616,0.28432314,145.64,145.59,0.033]
[1741299310802,0.28432314,145.61,145.59,0.033]
[1741299311003,88.67352314,145.6,145.59,0.033]
[1741299311222,6.67352314,145.6,145.59,0.033]
[1741299312292,6.3892,145.6,145.59,0.033]
[1741299312517,10.51,145.6,145.59,0.033]
[1741299313124,10.79432314,145.6,145.59,0.033]
[1741299313489,6.3892,145.6,145.59,0.033]
[1741299313816,1.5474,145.62,145.59,0.033]
[1741299313993,4.1202,145.63,145.59,0.033]
[1741299314186,0.28432314,145.62,145.59,0.033]
[1741299314793,4.1205,145.61,145.59,0.033]